bitfinex/quotes_ETHUSD_20240917
["timestamp","ask_amount","ask_price","bid_price","bid_amount"]
[1726569003671,6.62552,2317.0,2316.6,4.74918]
[1726569003873,6.62552,2317.0,2316.7,4.31646]
[1726569003874,2.2650101,2316.9,2316.7,4.31646]
[1726569004486,2.2650101,2316.8,2316.7,4.31646]
[1726569004918,2.2650101,2316.8,2316.7,4.74906]
[1726569005071,6.5812001,2316.9,2316.5,4.74941]
[1726569005272,2.3096,2317.0,2316.6,4.74924]
[1726569005273,2.2650101,2316.8,2316.6,4.74924]
[1726569005697,2.2650101,2316.8,2316.6,0.4326]
[1726569005908,6.5813101,2316.8,2316.4,7.02889]
[1726569006114,6.5813101,2316.8,2316.0,4.31768]
[1726569006115,4.31706,2316.4,2316.0,4.31768]
[1726569006315,6.5820701,2316.4,2316.0,4.31768]
[1726569006617,2.2650101,2316.3,2316.0,4.31768]
[1726569007129,2.26696743,2316.4,2316.2,4.31741]
[1726569007927,2.26696743,2316.4,2316.2,4.31724]
[1726569008426,2.26696743,2316.4,2316.3,4.31723]
[1726569008727,2.26696743,2316.6,2316.4,4.31704]
[1726569008905,2.26696743,2316.6,2316.4,4.74964]
[1726569009109,2.26696743,2316.6,2316.5,4.31685]
[1726569009426,5.72036091,2316.9,2316.6,4.31667]
[1726569009427,2.26696743,2316.7,2316.6,4.31667]
[1726569010085,2.26696743,2316.7,2316.5,5.23213226]
[1726569010086,2.26696743,2316.7,2316.5,0.91528226]
[1726569010292,2.26696743,2316.7,2316.5,4.3168]
[1726569010719,2.26696743,2316.6,2316.5,4.3168]
[1726569011115,2.26696743,2316.7,2316.5,4.3168]
[1726569011502,2.26696743,2316.6,2316.5,4.3168]
[1726569011710,2.26692923,2316.6,2316.5,4.7494]
[1726569012529,2.26692923,2316.6,2316.5,0.4326]
[1726569012734,7.03680508,2316.7,2316.3,4.74968]
[1726569012929,2.26728919,2316.5,2316.3,4.74968]
[1726569014733,2.26728919,2316.4,2316.3,4.74968]
[1726569015111,2.26728919,2316.5,2316.3,4.74968]
[1726569016431,2.26846095,2316.5,2316.3,4.74968]
[1726569016737,2.26846095,2316.4,2316.3,4.74983]
[1726569019547,2.26912299,2316.4,2316.3,4.74983]
[1726569021053,2.26912299,2316.4,2316.3,13.58283556]
[1726569021234,17.94849214,2317.0,2316.3,13.58283556]
[1726569021235,2.72268237,2316.9,2316.7,6.77302]
[1726569021440,2.72268237,2317.1,2316.9,4.31611]
[1726569021643,2.2683344,2317.0,2316.8,4.74881]
[1726569021932,2.2683344,2316.9,2316.8,0.4326]
[1726569022704,2.2683344,2316.9,2316.8,4.74889]
[1726569023368,2.2683344,2317.0,2316.8,5.901086]
[1726569023511,2.2683344,2317.0,2316.8,4.74889]
[1726569023713,2.2683344,2316.9,2316.8,4.74889]
[1726569023916,2.2683344,2317.0,2316.8,4.74889]
[1726569026077,2.26695567,2317.1,2317.0,4.31592]
[1726569026370,12.99433793,2317.6,2317.1,11.858163]
[1726569026371,2.26695567,2317.4,2317.1,11.858163]
[1726569026574,2.26695567,2317.4,2317.1,10.99496]
[1726569026870,2.26695567,2317.4,2317.2,4.31553]
[1726569027566,2.26695567,2317.4,2317.3,4.31536]
[1726569027870,2.26695567,2317.5,2317.3,4.31536]
[1726569028275,2.26695567,2317.5,2317.4,4.31518]
[1726569028459,2.26695567,2317.6,2317.4,4.31518]
[1726569029137,2.26695567,2317.7,2317.4,4.31518]
[1726569029479,2.26695567,2317.7,2317.4,4.40147357]
[1726569029628,2.26695567,2317.7,2317.4,4.31518]
[1726569030058,2.26695567,2317.7,2317.5,6.67928]
[1726569030229,2.26695567,2317.7,2317.5,6.76543106]
[1726569030429,2.28563029,2317.8,2317.6,4.31472]
[1726569030635,0.0235322,2317.8,2317.7,4.31462]
[1726569030969,0.0235322,2317.8,2317.6,4.74738]
[1726569031180,0.0235322,2317.8,2317.6,4.83366649]
[1726569031348,0.0235322,2317.8,2317.7,4.31462]
[1726569031668,0.0235322,2317.8,2317.7,4.83350252]
[1726569031873,0.0235322,2317.8,2317.7,9.14812252]
[1726569032236,0.0235322,2317.8,2317.7,4.83350252]
[1726569033090,0.0235322,2317.8,2317.7,25.21079247]
[1726569033384,0.0235322,2317.8,2317.7,23.80989286]
[1726569034291,0.0235322,2317.8,2317.7,28.12451286]
[1726569035184,0.0385875,2318.5,2318.4,11.35602]
[1726569035771,0.0385875,2318.5,2318.4,15.66933]
[1726569036073,0.0385875,2318.5,2318.4,17.57240266]
[1726569036969,0.0385875,2318.5,2318.4,13.25909266]
[1726569037836,0.0385875,2318.5,2318.4,8.94578266]
[1726569038071,0.0385875,2318.5,2318.4,2.33567266]
[1726569038278,0.0385875,2318.5,2318.2,4.74611]
[1726569038575,0.0385875,2318.5,2318.2,4.83236561]
[1726569038968,0.0385875,2318.5,2318.3,4.74607]
[1726569040577,0.0385875,2318.5,2318.3,4.83232572]
[1726569041381,0.0385875,2318.5,2318.3,0.4326]
[1726569041382,4.3517275,2318.5,2318.3,0.4326]
[1726569041533,0.0385875,2318.5,2318.1,6.67703265]
[1726569041758,4.3517175,2318.5,2318.1,8.25198792]
[1726569045035,4.3517175,2318.5,2318.1,1.57495527]
[1726569045385,4.31376,2318.2,2317.8,4.3144]
[1726569045583,4.31376,2318.2,2317.7,1.31151347]
[1726569045745,4.31376,2318.2,2317.7,4.40080717]
[1726569046237,4.31387,2318.1,2317.7,4.40080717]
[1726569046435,4.31387,2318.1,2317.7,4.83340717]
[1726569046993,4.31439,2317.9,2317.4,4.31506]
[1726569047176,4.31444,2317.8,2317.5,0.431506]
[1726569047353,4.31444,2317.8,2317.4,4.31506]
[1726569047548,6.71103,2317.7,2317.3,4.3153]
[1726569047880,2.3963,2317.7,2317.3,4.31526]
[1726569048088,2.3963,2317.7,2317.4,0.664296]
[1726569048299,2.3963,2317.7,2317.4,5.411986]
[1726569048598,6.71047,2318.0,2317.5,4.74758]
[1726569048805,11.02464,2318.0,2317.5,9.06234]
[1726569048976,6.71045,2318.0,2317.5,6.06488249]
[1726569049394,5.3963,2318.0,2317.7,4.31455]
[1726569049704,9.71039,2318.0,2317.5,4.40109145]
[1726569049908,9.71039,2318.0,2317.6,4.31478]
[1726569050080,5.3963,2318.0,2317.7,4.31457]
[1726569050282,7.47,2318.1,2317.7,7.94643315]
[1726569050489,7.47,2318.1,2317.7,12.26092315]
[1726569050673,7.47,2318.1,2317.7,7.94635315]
[1726569050884,11.78399,2318.1,2317.7,7.94635315]
[1726569051078,7.47,2318.1,2317.8,4.31443]
[1726569051284,4.31382,2318.2,2317.8,4.31443]
[1726569051479,8.6276,2318.2,2317.8,4.31443]
[1726569051807,8.6276,2318.2,2317.7,3.71814263]
[1726569051808,4.31389,2318.1,2317.7,8.03272263]
[1726569052209,4.31378,2318.2,2317.7,8.03272263]
[1726569052520,4.31378,2318.2,2317.8,5.63540234]
[1726569052717,4.31353,2318.3,2317.9,0.4326]
[1726569053071,4.31353,2318.3,2317.9,0.51887583]
[1726569053281,8.62716,2318.3,2317.9,0.51887583]
[1726569053479,4.3137,2318.2,2317.9,0.51887583]
[1726569054726,6.64095,2318.1,2317.7,4.83348595]
[1726569054926,6.64095,2318.1,2317.7,5.98171254]
[1726569059416,6.64095,2318.1,2317.8,0.0862769]
[1726569059830,6.64095,2318.1,2317.7,5.98171349]
[1726569060410,4.31429,2317.9,2317.7,1.58082659]
[1726569060643,4.31429,2317.9,2317.7,0.4326]
[1726569060809,6.64087,2318.1,2317.5,0.4326]
[1726569060810,3.36139656,2318.0,2317.5,0.4326]
[1726569061031,4.31505,2317.5,2317.0,14.08818]
[1726569061217,5.62579656,2317.6,2316.3,4.31708]
[1726569061218,3.36139656,2317.4,2316.7,6.7487]
[1726569061415,3.36139656,2317.4,2316.3,15.01855656]
[1726569061416,4.31599,2317.0,2316.8,0.67487]
[1726569062159,4.31577,2317.1,2316.8,0.67487]
[1726569064620,4.31594,2317.0,2316.8,0.67487]
[1726569064864,4.31594,2317.0,2316.6,0.4326]
[1726569065169,4.31612,2316.9,2316.6,0.4326]
[1726569065316,4.31594,2317.0,2316.6,4.74916]
[1726569065517,7.47,2317.5,2316.5,6.71805]
[1726569065518,2.3645,2316.9,2316.5,0.4326]
[1726569065757,6.68077,2316.9,2316.5,1.104405]
[1726569065999,6.68077,2316.9,2316.3,6.8067]
[1726569066000,2.3645,2316.9,2316.3,4.31721]
[1726569066168,4.31659,2316.7,2316.3,4.31721]
[1726569066487,4.31659,2316.7,2316.3,0.4326]
[1726569066803,4.31644,2316.8,2316.4,0.907599]
[1726569067654,5.3645,2316.9,2316.5,4.74936]
[1726569067855,3.0,2316.9,2316.5,4.74936]
[1726569068088,3.0,2316.9,2316.6,0.77198856]
[1726569068260,3.0,2316.9,2316.6,5.52124856]
[1726569068473,3.0,2316.9,2316.6,1.20458856]
[1726569068881,14.15045,2317.2,2316.8,4.31629]
[1726569069090,14.15045,2317.2,2316.6,1.20458856]
[1726569069091,2.3648,2317.2,2317.0,4.31584]
[1726569069287,4.31528,2317.4,2317.1,0.431584]
[1726569069470,4.31545,2317.3,2316.8,4.83506739]
[1726569069663,4.31525,2317.4,2316.9,4.74859]
[1726569069865,4.31525,2317.4,2316.9,9.97975874]
[1726569070070,4.31525,2317.4,2316.9,5.66372874]
[1726569070382,4.31525,2317.4,2316.9,5.75003688]
[1726569070702,4.31525,2317.4,2317.0,0.57500369]
[1726569070914,4.31538,2317.3,2317.0,0.57500369]
[1726569071092,4.31564,2317.2,2316.9,0.4326]
[1726569071767,2.3648,2317.1,2316.7,0.4326]
[1726569071971,4.31621,2316.9,2316.5,4.74967]
[1726569072305,4.31621,2316.9,2316.5,5.897249]
[1726569073103,4.31631,2316.8,2316.5,1.580479]
[1726569073303,4.31667,2316.6,2316.2,4.3173]
[1726569073562,6.80618,2316.7,2316.3,4.31721]
[1726569073761,4.3163,2316.8,2316.4,5.180481]
[1726569074061,4.31669,2316.6,2316.2,4.31739]
[1726569074372,4.31669,2316.6,2316.2,0.4329]
[1726569074868,4.31669,2316.6,2316.2,5.896643]
[1726569075468,4.3165,2316.7,2316.3,4.75011]
[1726569076115,4.31669,2316.6,2316.3,0.4329]
[1726569077352,8.63307,2316.7,2316.3,0.4329]
[1726569077557,8.63307,2316.7,2316.3,1.2621063]
[1726569077967,4.3168,2316.6,2316.3,1.2621063]
[1726569078163,4.31686,2316.5,2316.3,1.2621063]
[1726569078386,6.61106,2316.4,2316.0,4.75068]
[1726569078538,4.31723,2316.3,2316.0,0.4329]
[1726569078751,4.31723,2316.3,2316.0,1.13594]
[1726569079983,2.2939,2316.4,2316.0,5.45365]
[1726569080350,6.61098,2316.4,2316.0,5.45365]
[1726569081490,6.61098,2316.4,2316.0,5.45369]
[1726569081794,2.2939,2316.4,2316.1,4.31755]
[1726569083463,11.09311,2316.7,2316.2,2.4924]
[1726569083666,11.09311,2316.7,2316.3,4.3172]
[1726569083971,11.09311,2316.7,2316.2,2.4924]
[1726569083972,4.31668,2316.6,2316.2,6.80978]
[1726569085403,6.77648,2316.7,2316.3,4.31714]
[1726569085857,6.77647,2316.7,2316.2,7.24258]
[1726569086058,11.09306,2316.7,2316.3,4.31719]
[1726569086292,6.77647,2316.7,2316.3,4.31719]
[1726569088206,11.09306,2316.7,2316.3,4.31719]
[1726569089259,4.31669,2316.6,2316.2,8.1349464]
[1726569089591,4.31669,2316.6,2316.2,12.4522864]
[1726569089795,4.31669,2316.6,2316.2,8.1349164]
[1726569089964,11.09312,2316.7,2316.2,8.1348464]
[1726569090172,11.09312,2316.7,2316.3,5.66129904]
[1726569090511,6.77647,2316.7,2316.3,5.66129904]
[1726569091351,6.77647,2316.7,2316.4,4.31703]
[1726569091595,4.31649,2316.7,2316.3,9.97838904]
[1726569091796,7.31639,2316.8,2316.4,5.5641089]
[1726569092394,4.31639,2316.8,2316.4,5.5641089]
[1726569092593,6.69711,2316.9,2316.5,4.74972]
[1726569092768,4.31631,2316.8,2316.5,0.4329]
[1726569094004,8.63278,2316.8,2316.5,0.4329]
[1726569094497,4.3165,2316.7,2316.5,0.4329]
[1726569095180,4.3165,2316.7,2316.4,5.5641089]
[1726569095517,4.3165,2316.7,2316.3,4.75004]
[1726569095809,3.0,2316.7,2315.8,2.3802]
[1726569096111,6.77798,2316.5,2316.1,4.3176]
[1726569096280,6.77798,2316.5,2316.1,5.614025]
[1726569096671,4.31677,2316.6,2316.2,4.7503]
[1726569096873,4.31671,2316.6,2316.2,4.7503]
[1726569097092,4.31671,2316.6,2316.3,2.3434]
[1726569097892,4.31647,2316.8,2316.3,2.3434]
[1726569097893,4.3164,2316.8,2316.3,6.66047]
[1726569098074,7.31652,2316.7,2316.3,7.4647934]
[1726569098573,3.0,2316.7,2316.4,4.317]
[1726569098978,7.31649,2316.7,2316.3,7.4648834]
[1726569099194,3.0,2316.7,2316.3,7.4648834]
[1726569099364,3.0,2316.7,2316.4,4.31695]
[1726569099781,4.3164,2316.8,2316.3,3.1477234]
[1726569099976,4.31648,2316.7,2316.3,2.3434]
[1726569100518,7.31638,2316.8,2316.4,4.31699]
[1726569101490,4.31649,2316.7,2316.3,6.66058]
[1726569104520,4.31672,2316.6,2316.2,9.06755]
[1726569104723,2.3351,2316.5,2316.2,4.7502]
[1726569104932,2.3351,2316.5,2316.2,5.46658]
[1726569105224,2.3351,2316.5,2316.3,4.31721]
[1726569105925,2.3351,2316.5,2316.2,1.14928]
[1726569105926,4.31715,2316.4,2315.9,0.4329]
[1726569106084,4.31723,2316.3,2315.9,4.75076]
[1726569106285,4.31723,2316.3,2315.9,5.89406975]
[1726569106725,4.31706,2316.4,2316.0,4.75061]
[1726569108055,4.31725,2316.3,2316.0,0.4329]
[1726569108842,4.31706,2316.4,2316.0,4.75054]
[1726569109055,4.31751,2316.2,2315.8,4.3181]
[1726569109406,6.57974421,2316.2,2315.8,4.3181]
[1726569110222,9.05917421,2316.3,2315.8,4.3181]
[1726569110511,10.89692421,2316.3,2316.0,2.4428]
[1726569111142,6.57957421,2316.3,2316.0,2.4428]
[1726569111651,5.26223421,2316.3,2316.0,6.84690645]
[1726569111947,2.26223421,2316.3,2316.0,8.01215052]
[1726569112123,6.57932421,2316.4,2316.0,8.01215052]
[1726569112539,10.89650421,2316.4,2316.0,8.01215052]
[1726569113222,6.57932421,2316.4,2316.0,8.01215052]
[1726569113550,4.31709,2316.4,2316.0,8.01215052]
[1726569114109,6.58288668,2316.4,2316.0,8.01215052]
[1726569114551,6.58288668,2316.4,2316.0,3.69439052]
[1726569114713,4.31726,2316.3,2316.0,2.4428]
[1726569115311,2.4708,2316.2,2315.9,4.31793]
[1726569116751,2.4708,2316.2,2315.8,4.75098]
[1726569117142,2.4708,2316.2,2315.9,4.31795]
[1726569117657,6.78826,2316.2,2315.8,4.75098]
[1726569117869,6.58305668,2316.3,2316.0,4.31771]
[1726569117870,2.26579668,2316.3,2316.0,4.31771]
[1726569118020,6.58311668,2316.3,2315.9,4.31797]
[1726569118421,4.31732,2316.3,2315.9,4.31797]
[1726569118619,6.58518,2316.3,2315.9,4.31797]
[1726569118828,6.58509,2316.3,2315.8,4.75103]
[1726569119356,6.58537,2316.2,2315.8,4.75103]
[1726569120361,2.26786,2316.2,2315.9,4.31795]
[1726569120559,4.31742,2316.2,2315.9,0.4329]
[1726569121271,6.58509,2316.3,2315.7,0.0385875]
[1726569121272,8.66379656,2316.1,2315.7,0.0385875]
[1726569121562,11.63632,2315.8,2315.7,0.0385875]
[1726569121762,14.357752,2315.8,2315.7,0.0385875]
[1726569121916,11.63632,2315.8,2315.7,0.0385875]
[1726569122269,14.35682073,2315.8,2315.7,0.0385875]
[1726569123275,11.63632,2315.8,2315.7,0.0385875]
[1726569123771,23.51756342,2315.8,2315.7,0.0385875]
[1726569123925,27.54917683,2315.8,2315.7,0.0385875]
[1726569124125,30.91057339,2315.8,2315.7,0.0385875]
[1726569125070,24.70845925,2315.8,2315.7,0.0385875]
[1726569125558,23.51327554,2315.8,2315.7,0.0385875]
[1726569125767,13.95842,2315.8,2315.7,0.0385875]
[1726569125998,18.27658,2315.8,2315.7,0.0385875]
[1726569126184,13.95842,2315.8,2315.7,0.0385875]
[1726569126966,16.22081863,2315.8,2315.7,0.0385875]
[1726569127174,13.95842,2315.8,2315.7,0.0385875]
[1726569128779,19.70982208,2315.8,2315.7,0.0385875]
[1726569129962,24.02798208,2315.8,2315.7,0.0385875]
[1726569130161,26.28885802,2315.8,2315.7,0.0385875]
[1726569130600,24.02798208,2315.8,2315.7,0.0385875]
[1726569131200,26.46193622,2315.8,2315.7,0.0385875]
[1726569131701,30.78009622,2315.8,2315.7,0.0385875]
[1726569131901,26.46193622,2315.8,2315.7,0.0385875]
[1726569132207,30.78009622,2315.8,2315.7,0.0385875]
[1726569132501,26.46193622,2315.8,2315.7,0.0385875]
[1726569132699,30.78009622,2315.8,2315.7,0.0385875]
[1726569133062,26.46193622,2315.8,2315.7,0.0385875]
[1726569133261,27.41869966,2315.8,2315.7,0.0385875]
[1726569133599,30.78009622,2315.8,2315.7,0.0385875]
[1726569133770,33.49314735,2315.8,2315.7,0.0385875]
[1726569134685,30.78009622,2315.8,2315.7,0.0385875]
[1726569135300,35.09825622,2315.8,2315.7,0.0385875]
[1726569136167,35.09825622,2315.8,2315.1,9.96]
[1726569136168,4.31928,2315.2,2315.1,9.96]
[1726569136360,7.31928,2315.2,2315.1,9.96]
[1726569136565,6.57447865,2315.6,2315.1,9.96]
[1726569136566,4.31911,2315.3,2315.1,9.96]
[1726569136774,4.31881,2315.5,2315.2,2.3673]
[1726569136985,4.31848,2315.7,2315.3,1.664668]
[1726569136986,4.31855,2315.6,2315.3,1.664668]
[1726569137380,4.31848,2315.7,2315.3,1.664668]
[1726569137687,8.63688,2315.7,2315.4,0.8870412]
[1726569137887,4.31844,2315.7,2315.5,2.4857]
[1726569138087,8.63689,2315.7,2315.5,2.4857]
[1726569138296,4.31844,2315.7,2315.5,2.4857]
[1726569138500,2.70810365,2316.2,2315.7,4.31827]
[1726569138662,2.70810365,2316.2,2315.4,1.40630626]
[1726569138663,0.452175,2316.2,2315.8,7.209967]
[1726569138869,0.452175,2316.2,2316.0,2.46]
[1726569139107,8.63425,2316.4,2316.0,2.46]
[1726569139308,4.31724,2316.3,2316.0,2.46]
[1726569139712,4.31686,2316.5,2316.0,7.9737427]
[1726569140087,7.31707,2316.4,2316.0,3.6560927]
[1726569140491,4.31686,2316.5,2316.0,3.6560927]
[1726569140791,4.31724,2316.3,2316.0,3.6560927]
[1726569141533,4.24928335,2316.3,2316.0,3.6560927]
[1726569142089,7.67843656,2316.4,2316.0,3.6560927]
[1726569142306,7.67843656,2316.4,2316.1,0.79740527]
[1726569142934,4.31725,2316.3,2316.1,0.79740527]
[1726569143116,4.31704,2316.4,2316.1,0.79740527]
[1726569145157,4.31723,2316.3,2316.1,0.79740527]
[1726569150226,4.31723,2316.3,2316.0,2.46]
[1726569153421,4.31701,2316.5,2316.1,4.31755]
[1726569153621,4.31701,2316.5,2316.0,2.46]
[1726569153916,5.08764289,2316.7,2315.9,4.8371762]
[1726569153917,0.45193504,2316.7,2316.3,2.4294]
[1726569154122,0.45193504,2316.7,2316.4,4.60325]
[1726569154453,6.57463785,2316.9,2316.4,0.28623]
[1726569155049,4.31613,2316.9,2316.4,0.28623]
[1726569155249,3.0,2316.9,2316.4,0.28623]
[1726569155570,3.0,2316.9,2316.5,2.4187]
[1726569157833,7.31619,2316.9,2316.5,2.4187]
[1726569158941,3.0,2316.9,2316.5,2.4187]
[1726569159141,5.25850785,2317.1,2316.6,4.3166]
[1726569159343,9.57346527,2317.1,2316.5,6.9860131]
[1726569159648,12.93486183,2317.1,2316.5,6.9860131]
[1726569160456,12.93486183,2317.1,2316.6,1.13029231]
[1726569161399,5.25772527,2317.1,2316.6,5.44692231]
[1726569161603,3.0,2317.1,2316.6,5.44692231]
[1726569161963,3.0,2317.1,2316.7,4.31646]
[1726569162303,3.45191156,2317.2,2316.8,2.4532]
[1726569162656,3.0,2317.2,2316.8,2.4532]
[1726569163452,7.31557,2317.2,2316.8,2.4532]
[1726569164467,9.27058183,2317.2,2316.8,2.4532]
[1726569165198,9.27058183,2317.2,2316.6,6.69715]
[1726569168019,9.27058183,2317.2,2316.6,11.01373]
[1726569168319,7.31557,2317.2,2316.6,6.69708]
[1726569168522,11.6313,2317.2,2316.6,6.69708]
[1726569168936,4.31585,2317.1,2316.6,2.3805]
[1726569169081,2.3771,2317.0,2316.6,2.3805]
[1726569171693,6.69302,2317.0,2316.6,2.3805]
[1726569172100,11.00912,2317.0,2316.5,0.4329]
[1726569172300,4.31612,2316.9,2316.5,0.4329]
[1726569172699,8.093932,2317.0,2316.5,0.4329]
[1726569173884,4.31578,2317.1,2316.5,4.74975]
[1726569174092,8.63161,2317.1,2316.5,4.74975]
[1726569174286,8.63168,2317.1,2316.5,4.74975]
[1726569175124,4.31597,2317.0,2316.5,4.74975]
[1726569176704,4.31574,2317.1,2316.5,9.06647]
[1726569177017,4.31574,2317.1,2316.5,9.06638]
[1726569177431,4.31574,2317.1,2316.5,4.74962]
[1726569178193,6.2758424,2317.1,2316.5,4.74962]
[1726569178392,10.5917524,2317.1,2316.5,4.74962]
[1726569178737,4.31596,2317.0,2316.5,0.4329]
[1726569178894,4.31596,2317.0,2316.5,4.74975]
[1726569179496,4.31596,2317.0,2316.4,2.4804]
[1726569179497,2.4446,2316.9,2316.4,2.4804]
[1726569179812,7.81997024,2316.9,2316.4,2.4804]
[1726569180330,7.81997024,2316.9,2316.4,6.79737]
[1726569181285,6.57420102,2317.0,2316.4,6.79737]
[1726569181527,10.89026102,2317.0,2316.4,6.79737]
[1726569181831,10.89176376,2317.0,2316.4,6.79737]
[1726569182132,2.4446,2316.7,2316.3,9.96]
[1726569182722,6.76115,2316.7,2316.3,9.96]
[1726569182927,8.43099403,2316.7,2316.3,9.96]
[1726569183233,10.69072779,2316.7,2316.3,9.96]
[1726569185021,4.31674,2316.6,2316.3,9.96]
[1726569185222,6.57647376,2316.6,2316.3,9.96]
[1726569185591,2.25973376,2316.6,2316.3,9.96]
[1726569186036,2.26432124,2316.6,2316.3,9.96]
[1726569186235,2.26432124,2316.6,2316.3,14.2771]
[1726569186394,9.58080124,2316.7,2316.5,2.465]
[1726569186594,5.26440162,2316.7,2316.3,9.96]
[1726569186904,2.26440162,2316.6,2316.3,12.425]
[1726569189028,6.58108162,2316.6,2316.3,9.96]
[1726569189192,8.86012162,2316.5,2316.3,9.96]
[1726569189703,2.26440162,2316.4,2316.3,9.96]
[1726569189920,10.89848162,2316.4,2316.3,9.96]
[1726569190125,14.99547656,2316.4,2316.3,9.96]
[1726569190346,17.39317656,2316.4,2316.3,9.96]
[1726569190505,27.34115841,2316.4,2316.3,9.96]
[1726569190712,24.62387646,2316.4,2316.3,9.96]
[1726569190906,27.79403873,2316.4,2316.3,9.96]
[1726569191108,24.62387646,2316.4,2316.3,9.96]
[1726569191312,27.79617147,2316.4,2316.3,9.96]
[1726569192819,24.62387646,2316.4,2316.3,9.96]
[1726569194458,27.79509976,2316.4,2316.3,9.96]
[1726569194821,24.4337032,2316.4,2316.3,9.96]
[1726569195027,27.79509976,2316.4,2316.3,9.96]
[1726569196112,27.79362282,2316.4,2316.3,9.96]
[1726569197912,28.24562867,2316.4,2316.3,9.96]
[1726569198514,25.07588231,2316.4,2316.3,9.96]
[1726569202639,27.78949589,2316.4,2316.3,9.96]
[1726569204219,27.86482783,2316.4,2316.3,9.96]
[1726569205475,24.6992084,2316.4,2316.3,9.96]
[1726569205772,27.41200852,2316.4,2316.3,9.96]
[1726569206834,23.01963658,2316.4,2316.3,9.96]
[1726569207656,20.62193658,2316.4,2316.3,9.96]
[1726569207846,17.26054002,2316.4,2316.3,9.96]
[1726569208046,20.62193658,2316.4,2316.3,9.96]
[1726569208996,11.63408,2316.4,2316.3,9.96]
[1726569212805,14.99547656,2316.4,2316.3,9.96]
[1726569213164,17.32727656,2316.4,2316.3,9.96]
[1726569213375,20.03937795,2316.4,2316.3,9.96]
[1726569213766,17.70757795,2316.4,2316.3,9.96]
[1726569213994,2.26040428,2316.4,2316.3,9.96]
[1726569214200,6.57731428,2316.5,2316.3,11.19787]
[1726569214359,2.26040428,2316.5,2316.3,11.19787]
[1726569214787,6.57707428,2316.6,2316.4,2.3979]
[1726569214996,2.26044065,2316.6,2316.4,2.3979]
[1726569215305,9.08415106,2317.0,2316.6,6.71444]
[1726569215306,2.26044065,2316.9,2316.6,6.71444]
[1726569215475,2.26044065,2317.0,2316.6,6.71444]
[1726569216165,2.26044065,2317.0,2316.7,2.3028]
[1726569216384,6.57619065,2317.1,2316.8,0.661934]
[1726569217028,2.26044065,2317.0,2316.8,0.661934]
[1726569217231,2.26044065,2317.0,2316.7,2.3028]
[1726569217538,5.26044065,2317.0,2316.7,2.3028]
[1726569218034,2.26044065,2317.1,2316.7,4.31644]
[1726569218236,2.26044065,2317.1,2316.8,2.282]
[1726569218524,2.26044065,2317.1,2316.8,3.373498]
[1726569219635,2.26006995,2317.1,2316.8,3.373498]
[1726569219932,9.57564995,2317.2,2316.8,3.373498]
[1726569220336,2.26006995,2317.1,2316.8,3.373498]
[1726569220637,4.31594,2317.0,2316.8,3.373498]
[1726569220803,6.57600995,2317.0,2316.8,2.282]
[1726569221001,5.26006995,2317.0,2316.8,2.282]
[1726569221601,3.0,2317.0,2316.8,2.282]
[1726569221801,5.26006995,2317.0,2316.8,2.282]
[1726569222726,2.26006995,2317.1,2316.8,7.258139]
[1726569222931,2.26006995,2317.2,2316.9,4.3161]
[1726569223238,2.26006995,2317.3,2316.9,4.3161]
[1726569223440,2.26006995,2317.3,2317.0,0.7257959]
[1726569223640,2.26006995,2317.4,2317.2,4.31555]
[1726569223907,0.45197716,2317.5,2317.2,2.4736]
[1726569223908,2.71204711,2317.5,2317.2,2.4736]
[1726569224109,0.45197716,2317.5,2317.3,2.4736]
[1726569224409,7.06439197,2317.8,2317.3,2.4736]
[1726569224410,2.29799123,2317.8,2317.4,0.678905]
[1726569224576,6.61243123,2317.8,2317.4,0.678905]
[1726569225210,6.61245123,2317.8,2317.4,0.678905]
[1726569225564,4.3530475,2317.8,2317.4,0.678905]
[1726569226301,4.31471,2317.7,2317.4,0.678905]
[1726569227078,4.3530475,2317.8,2317.4,0.678905]
[1726569227685,4.31464,2317.7,2317.4,0.678905]
[1726569227883,4.31464,2317.7,2317.3,2.4736]
[1726569230530,4.31507,2317.5,2317.3,2.4736]
[1726569231360,4.3149,2317.6,2317.3,2.4736]
[1726569234889,0.0385875,2317.8,2317.3,2.4736]
[1726569234890,3.0385875,2317.8,2317.4,4.31508]
[1726569235110,7.3530675,2317.8,2317.6,2.4762]
[1726569237917,3.0385875,2317.8,2317.6,2.4762]
[1726569238294,0.0385875,2317.8,2317.6,2.4762]
[1726569238494,0.0385875,2317.8,2317.6,6.79087]
[1726569238690,0.0385875,2317.8,2317.7,7.774704]
[1726569240649,0.0385875,2317.8,2317.7,12.17560824]
[1726569240793,0.0385875,2317.8,2317.7,12.60850824]
[1726569240997,0.0385875,2317.8,2317.7,16.836844]
[1726569242343,0.0385875,2317.8,2317.7,12.522224]
[1726569243633,0.0385875,2317.8,2317.7,16.836844]
[1726569245171,0.0385875,2317.8,2317.7,21.701464]
[1726569245371,0.0385875,2317.8,2317.7,24.701464]
[1726569246736,0.0385875,2318.5,2318.4,10.92032]
[1726569246944,0.0385875,2318.5,2318.4,15.66653]
[1726569248154,0.0385875,2318.5,2318.4,11.35322]
[1726569254100,0.0385875,2318.5,2318.4,10.92032]
[1726569260106,0.0385875,2318.5,2318.4,11.35322]
[1726569260291,0.0385875,2318.5,2318.4,12.82468166]
[1726569262193,0.0385875,2318.5,2318.4,17.13799166]
[1726569262507,0.0385875,2318.5,2318.4,12.39178166]
[1726569262980,0.0385875,2318.5,2318.4,3.76516166]
[1726569263183,0.0385875,2318.5,2318.4,2.2937]
[1726569263495,0.0385875,2318.5,2318.2,4.31355]
[1726569263706,0.0385875,2318.5,2318.3,4.3135]
[1726569263887,0.0385875,2318.5,2318.3,4.31341]
[1726569265119,0.0385875,2318.5,2318.3,8.62682]
[1726569265412,0.0385875,2318.5,2318.3,5.84852799]
[1726569265716,0.0385875,2318.5,2318.3,5.93478779]
[1726569265913,0.0385875,2318.5,2318.3,5.84852799]
[1726569266074,0.0385875,2318.5,2318.3,5.9347678]
[1726569266276,0.0385875,2318.5,2318.3,5.9347578]